Cogmind - Beta 12 *** ADVENTURER MODE // 2023.08.30 @ 17:44:49 Player: Fira Result: Self-destructed Performance ------------- Evolutions (1) 500 Regions Visited (2) 400 Robots Destroyed (15) 75 Value Destroyed (319) 319 Prototype IDs (0) 0 Alien Tech Used (0) 0 Bonus (0) 0 TOTAL SCORE: 1294 Bonus ------- None Cogmind --------- Core Integrity 268/400 Matter 300/300 Energy 135/200 System Corruption 0% Temperature Cool (9) Movement Core (50) Location -9/Materials Parts ------- > --- POWER (2) -------- (None) > --- PROPULSION (2) --- (None) > --- UTILITY (2) ------ Small Battery > --- WEAPON (3) ------- (None) > --- INVENTORY (5) ---- (None) Peak State ------------ > --- POWER ------------ Light Ion Engine > --- PROPULSION ------- Wheel > --- UTILITY ---------- Heat Sink Small Battery > --- WEAPON ----------- Heavy EM Pulse Gun Heavy EM Pulse Gun Heavy EM Pulse Gun > --- INVENTORY -------- (None) [Rating: 10] Favorites ----------- Power Light Ion Engine Engine Light Ion Engine Propulsion Wheel Wheel Wheel Utility Heat Sink Device Heat Sink Storage Small Battery Weapon Small Laser Energy Gun Small Laser Build | -11 -10 -9 ------- Run | Jun Mat Mat Slots Evolved 2 | . . 2 Power 1 | . . 1 Propulsion . | . . . Utility . | . . . Weapon 1 | . . 1 Parts Attached 14 | 5 4 5 Power 2 | 1 . 1 Engine 2 | 1 . 1 Core . | . . . Reactor . | . . . Propulsion 4 | 2 2 . Treads . | . . . Leg . | . . . Wheel 4 | 2 2 . Hover . | . . . Flight . | . . . Utility 2 | . 2 . Device 1 | . 1 . Storage 1 | . 1 . Processor . | . . . Hackware . | . . . Protection . | . . . Artifact . | . . . Weapon 6 | 2 . 4 Energy Gun 6 | 2 . 4 Energy Cannon . | . . . Ballistic Gun . | . . . Ballistic Cannon . | . . . Launcher . | . . . Special Weapon . | . . . Impact Weapon . | . . . Slashing Weapon . | . . . Piercing Weapon . | . . . Special Melee Weapon . | . . . Unidentified Prototypes . | . . . Parts Lost 7 | . . 7 Power 1 | . . 1 Propulsion 2 | . . 2 Utility 1 | . . 1 Weapon 3 | . . 3 Highest Loss Streak 5 | . . 5 To Critical Strikes . | . . . Average Slot Usage (%) 82 | . 93 74 Engine 10 | . 14 6 Wheel 21 | . 28 16 Device 10 | . 11 10 Storage 10 | . 10 11 Energy Gun 28 | . 28 29 Naked Turns . | . . . Heaviest Build 14 | 5 7 14 Greatest Support 20 | 20 20 20 Greatest Overweight (x) 1 | . . 1 Average Overweight (x) . | . . . Largest Inventory Capacity 5 | 5 5 5 Average Capacity 5 | 5 5 5 Most Carried 3 | 2 2 3 Average Carried . | . . . Final Capacity 5 | 5 5 5 Final Carried 1 | . 1 . Class Distribution -------------------- 56% | Mutant 43% | Gunner Dominant Class ---------------- Mutant | -10/Materials Gunner | -9/Materials Resources | -11 -10 -9 ----------- Run | Jun Mat Mat Matter Collected 340 | 250 40 50 Remotely . | . . . Salvage Created 436 | 37 83 316 Parts 21 | . 6 15 Haulers Intercepted . | . . . Recyclers Shooed . | . . . Parts Field Recycled . | . . . Retrieved Matter . | . . . Parts Self-Destructed . | . . . Prevented . | . . . Kills | -11 -10 -9 ------- Run | Jun Mat Mat Combat Hostiles Destroyed 13 | 1 3 9 Guns 12 | . 3 9 Classes Destroyed 5 | 1 2 2 Builder 2 | . 2 . Swarmer 7 | . 3 4 Grunt 3 | 1 . 2 Duelist 1 | . . 1 Sentry 2 | . . 2 Best Kill Streak 5 | 1 5 4 Combat Bots Only 4 | 1 3 4 Max Kills in Single Turn 2 | 1 1 2 Gunslinging 1 | . . 1 Exploded . | . . . Melee . | . . . Uniques/NPCs Destroyed . | . . . Combat | -11 -10 -9 -------- Run | Jun Mat Mat Damage Taken 614 | 42 91 481 Core 161 | 8 21 132 Absorbed by Shields . | . . . Regen/Repaired (Parts) 28 | . . 28 Core Remaining (%) 92 | 96 88 . Volleys Fired 27 | 6 7 14 Largest 3 | 2 2 3 Hottest 135 | 80 80 135 Shots Fired 68 | 12 14 42 Gun 68 | 12 14 42 Cannon . | . . . Launcher . | . . . Special . | . . . Kinetic . | . . . Thermal 50 | 12 14 24 Explosive . | . . . Electromagnetic 18 | . . 18 Robot Hit Streak 16 | 12 6 16 Robot Miss Streak 2 | . 2 2 Penetration Max . | . . . Secondary Targets 4 | . . 4 Max Gunslinging Chain 1 | . . 1 Shots Hit Robots 56 | 12 9 35 Core Hits 19 | 1 5 13 Critical Kills . | . . . Critical Parts Destroyed . | . . . Critical Strikes 1 | . . 1 Corrupt 1 | . . 1 Melee Attacks . | . . . Impact . | . . . Slashing . | . . . Piercing . | . . . Sneak Attacks . | . . . Combat Hostiles . | . . . Follow-up Attacks . | . . . Damage Inflicted 717 | 130 133 454 Guns 717 | 130 133 454 Cannons . | . . . Explosions . | . . . Melee . | . . . Ramming . | . . . Kinetic . | . . . Thermal 512 | 130 133 249 Explosive . | . . . Electromagnetic 205 | . . 205 Impact . | . . . Slashing . | . . . Piercing . | . . . Highest Corruption . | . . . Average Corruption . | . . . Corruption Purged . | . . . Corruption Blocked . | . . . Overload Shots . | . . . Overflow Damage . | . . . Projectiles . | . . . Explosions . | . . . Melee . | . . . Knockbacks . | . . . Impact . | . . . Kinetic . | . . . Secondary . | . . . Self-Inflicted Damage . | . . . Shots . | . . . Rammed . | . . . Targets Rammed . | . . . Kicked . | . . . Crushed . | . . . Highest Temperature 187 | 138 . 187 Average Temperature 63 | 72 . 59 Received Heat Transfer 177 | 30 . 147 Siege Activations . | . . . Robots Corrupted . | . . . Combat Hostiles . | . . . Parts Fried 3 | . . 3 Impact Corruptions . | . . . Robots Melted 1 | 1 . . Combat Hostiles 1 | 1 . . Parts Melted 7 | 1 3 3 Heat Transferred 1150 | 300 300 550 Parts Sabotaged . | . . . Parts Stolen . | . . . Parts Stripped . | . . . Power Chain Reactions . | . . . Missiles Intercepted . | . . . Alert | -11 -10 -9 ------- Run | Jun Mat Mat Peak Influence 284 | 20 106 284 Initial 37 | . 11 37 Average 79 | 1 38 140 Maximum Alert Level 1 | . . 1 Low Security (%) 88 | 100 100 74 Level 1 11 | . . 25 Level 2 . | . . . Level 3 . | . . . Level 4 . | . . . Level 5 . | . . . High Security . | . . . Max Security . | . . . Squads Dispatched . | . . . Investigation . | . . . Extermination . | . . . Reinforcement . | . . . Assault . | . . . Garrison . | . . . Intercept . | . . . Searches Triggered . | . . . Construction Impeded . | . . . Haulers Reinforced . | . . . Active Scanning Responses . | . . . Cargo Convoy Interrupts . | . . . Stealth | -11 -10 -9 --------- Run | Jun Mat Mat Distress Signals . | . . . Communications Jammed . | . . . Distress Signals . | . . . Times Spotted 26 | 1 10 15 Peak Tracking Total 5 | 1 5 5 Tactical Retreats 1 | . . 1 Traps | -11 -10 -9 ------- Run | Jun Mat Mat Traps Triggered . | . . . Indirectly . | . . . Trap Hack Attempts . | . . . Triggered . | . . . Disarmed . | . . . Reprogrammed . | . . . Reused . | . . . Traps Extracted . | . . . Installed . | . . . Triggered . | . . . Machines | -11 -10 -9 ---------- Run | Jun Mat Mat Machines Disabled . | . . . Max in Single Turn . | . . . Machines Repaired . | . . . Machines Sabotaged . | . . . Overloaded Fab Kills . | . . . Hacking | -11 -10 -9 --------- Run | Jun Mat Mat Machines Accessed 4 | . 2 2 Terminals 3 | . 2 1 Fabricators . | . . . Repair Stations 1 | . . 1 Recycling Units . | . . . Scanalyzers . | . . . Garrison Access . | . . . Total Hacks 8 | . 4 4 Successful 5 | . 2 3 Failed 3 | . 2 1 Catastrophic . | . . . Database Lockouts . | . . . Manual . | . . . Terminals 6 | . 4 2 Fabricators . | . . . Repair Stations 2 | . . 2 Recycling Units . | . . . Scanalyzers . | . . . Garrison Access . | . . . Terminal Hacks 3 | . 2 1 Record 1 | . 1 . Alert Level 1 | . . 1 Zone Layout 1 | . 1 . Fabricator Hacks . | . . . Repair Station Hacks 2 | . . 2 Scan Component 1 | . . 1 Repair 1 | . . 1 Recycling Unit Hacks . | . . . Scanalyzer . | . . . Garrison Access Hacks . | . . . Unauthorized Hacks . | . . . Terminals . | . . . Fabricators . | . . . Repair Stations . | . . . Recycling Units . | . . . Scanalyzers . | . . . Garrison Access . | . . . Data Cores Recovered . | . . . Used . | . . . Hacking Detections 4 | . 2 2 Full Trace Events . | . . . Feedback Events . | . . . Feedback Blocked . | . . . Robot Schematics Acquired . | . . . Robots Built . | . . . Authchips . | . . . Time . | . . . Total Robot Build Rating . | . . . Part Schematics Acquired . | . . . Parts Built . | . . . Authchips . | . . . Time . | . . . Total Part Build Rating . | . . . Parts Repaired 1 | . . 1 Time 26 | . . 26 Parts Recycled . | . . . Recycled Matter . | . . . Retrieved Matter . | . . . Retrieved Components . | . . . Parts Scanalyzed . | . . . Part Schematics Acquired . | . . . Parts Damaged . | . . . Bothacking | -11 -10 -9 ------------ Run | Jun Mat Mat Used RIF Installer . | . . . Robots Hacked . | . . . Non-combat . | . . . Combat . | . . . Robot Hacks Applied . | . . . Relay Couplers Released . | . . . Fabnet Peak Effective % . | . . . Robots Rewired . | . . . Allies Hacked . | . . . Hacks Repelled . | . . . Allies | -11 -10 -9 -------- Run | Jun Mat Mat Total Allies . | . . . Largest Group . | . . . Highest-Rated Group . | . . . Highest-Rated Ally . | . . . Total Orders . | . . . Ally Attacks . | . . . Total Damage . | . . . Kills . | . . . Allies Corrupted . | . . . Allies Melted . | . . . Intel | -11 -10 -9 ------- Run | Jun Mat Mat Robot Analysis Total . | . . . Derelict Logs Recovered . | . . . Drone Launches . | . . . Drone Recoveries . | . . . Exploration | -11 -10 -9 ------------- Run | Jun Mat Mat Turns Passed 559 | 82 226 251 Spaces Moved 526 | 77 244 205 Core 27 | 26 . 1 Treads . | . . . Legs . | . . . Wheels 499 | 51 244 204 Hover . | . . . Flight . | . . . Fastest Speed 50 | 50 80 50 Average Speed 80 | 69 80 84 Slowest Speed 95 | 80 80 95 Overloaded Moves . | . . . Propulsion Burnouts . | . . . Robots Hopped . | . . . Cave-ins Triggered . | . . . Exploration Rate (%) 20 | 9 31 21 Regions Visited 2 Branch Regions . Pre-discovered Areas . | . . . Known Exits Taken . | . . . Unknown Exits Taken 2 | 1 1 . Scrap Searched . | . . . Spaces Dug . | . . . Terrain Destroyed . | . . . Melee . | . . . Projectile . | . . . AOE . | . . . Terrain Rammed . | . . . Walls Destroyed . | . . . Machines Disabled . | . . . Actions | -11 -10 -9 --------- Run | Jun Mat Mat Total 605 | 92 261 252 Wait 21 | . . 21 Move 524 | 76 243 205 Hop . | . . . Pick Up 14 | 5 5 4 Fast Attach . | . . . Attach 14 | 5 4 5 Detach . | . . . Swap . | . . . Drop 5 | . 2 3 Fire 27 | 6 7 14 Melee . | . . . Ram . | . . . Kick . | . . . Crush . | . . . Escape Stasis . | . . . Rewire . | . . . Trap . | . . . Miscellaneous . | . . . Route ------- -11/Junkyard -10/Materials -9/Materials History --------- Turn | Location | Event 2 | -11/Junkyard | Met Revision 17 55 | -11/Junkyard | Discovered new exit (range 8) 83 | -11/Junkyard | Entered Materials 293 | -10/Materials | Discovered new exit (range 7) 309 | -10/Materials | Entered another Materials area 309 | -9/Materials | Evolved 2 slots: Power x1, Weapon x1 378 | -9/Materials | Repaired Lgt. Ion Engine 560 | -9/Materials | Self-destructed Last Messages --------------- G-34 Mercenary destroyed. Switching to secondary target: Y-45 Defender. Y-45 Defender destroyed. R-06 Scavenger collects Heat Sink. R-06 Scavenger collects Aluminum Leg. K-01 Serf collects debris. R-06 Scavenger collects Heat Sink. K-01 Serf cleans the Recycling Unit. K-01 Serf collects debris. Hvy. EM Pulse Gun destroyed. K-01 Serf collects debris. S-10 Pest IFF system glitched. Hvy. EM Pulse Gun destroyed. K-01 Serf collects debris. K-01 Serf cleans the Electrolysis Chamber. Heat Sink destroyed. K-01 Serf collects debris. Critical hit (Burn: +37). Hvy. EM Pulse Gun destroyed. Wheel destroyed. Map ----- +----------------------------------------------------+ | ####### "###???##???????????????????? | | ???????# "%#??????????????????????????? | | ???????# #??????????????????????????? | | ???????# #??????????????????????????? | | ???????# #??????????????????????????? | | ???????# #####??????????????????????? | | ???????# #"T"#####??????????????????? | | ???????# #??????????????????? | | ###### #??????????????????? | | " / """ """ #??????????????????? | | " ###### "Y """ #??????????????????? | | ???????# """ """ #??????????????????? | | ???????# #??????????????????? | | ???????# #??????????????????? | | ???????# """ """ +??????????????????? | | ???????# """ """ #??????????????????? | | ???????# """ """ !#??????????????????? | | ???????# ##?????????????????? | | ???????# #?????????????????? | | ???????###+##### #?????????????????? | | ????????? ???# #?????????????????? | | ????????? ???# #?????????????????? | | ????????"" ??# #?????????????????? | | ????????"" ?####/##########??????????? | | ???????""" |# [ s s! != ##?????????? | | ??????? # s @[ Y#?????????? | | ???????""" # """ """ ![ ##?????????? | | ?????????" # """ """ #??????????? | | ?????????" # """ """ = #??????????? | | ?????????? # #??????????? | | ??????????###################??????????? | | ???????????????????????????????????????? | | ???????????????????????????????????????? | | ???????????????????????????????????????? | | ???????????????????????????????????????? | | ???????????????????????????????????????? | | ???????????????????????????????????????? | | ???????????????????????????????????????? | | ???????????????????????????????????????? | | ???????????????????????????????????????? | | ???????????????????????????????????????? | | ???????????????????????????????????????? | | ???????????????????????????????????????? | | ???????????????????????????????????????? | | ???????????????????????????????????????? | | ???????????????????????????????????????? | | ???????????????????????????????????????? | | ???????????????????????????????????????? | | ???????????????????????????????????????? | | ???????????????????????????????????????? | +----------------------------------------------------+ Best States ------------- Heat Dissipation 38 Energy Generation 10 Energy Capacity 225 Matter Stores 300 Matter Capacity 300 Sight Range 16 Terrain Scan Density 10 Resistance: KI 20 Resistance: TH 20 Resistance: EX 20 Resistance: EM 20 Resistance: I 20 Resistance: S 20 Resistance: P 20 Evasion (%) 50 Offensive Hacking 10 Item Schematics ----------------- None Robot Schematics ------------------ None Fabricated ------------ Nothing Alien Tech Used ----------------- None Achievements -------------- It's Just You Part-time Mechanic Challenges ------------ None Game ------ Seed GhostTransmissionKatana Manual? 0 Play Time 00:08:21 Cumulative 1.9 hours Start 2023.08.30 @ 11:57:58 End 2023.08.30 @ 17:44:49 Sessions 3 Manual Loads 0 Difficulty Adventurer Special Mode None Game No. 2 Rogue 0 Adventurer 2 Explorer 0 Win Type - Total 0 Types 0/0/0/0/0/0/0/0/0 Lore% 1 Gallery% 6 Achievement% 7 Wizard Run 0 Options --------- ASCII 0 Keyboard 0 Movement Arrows Keybinds 0 Fullscreen 1 Font 18/SmallcapsGlow Map View 76x50 Tactical HUD 0 Map Filters NONE Filters NONE Steam 1 RUN: 8caffa96-f1d5-4bb6-8c35-f08c5c9ff27b